Workbook

Sheet Janvāris
A1: JANVĀRIS
A2: Pārdošana tiešsaistē | C2: Izsoles ID | D2: Pozīcijas apraksts | E2: Pirkuma cena | F2: Pārdošanas cena | G2: Interneta maksājumi | H2: PayPal maksājumi | I2: Kredītkartes maksājumi | J2: Piegādes izdevumi | K2: Maksa par piegādi | L2: Peļņa/zaudējumi no pārdošanas | M2: Peļņa/zaudējumi no pārvadājumiem | N2: Kopējā peļņa/zaudējumi
A3: Gads | C3: TS001 | D3: Pozīcija 1 | E3: 5.00 € | F3: 4.00 € | G3: 2.00 € | H3: 1.50 € | I3: 0.00 € | J3: 4.00 € | K3: 2.00 € | L3: =IFERROR(JanvārisPārdošana[Pārdošanas cena]-(JanvārisPārdošana[Pirkuma cena]+JanvārisPārdošana[Interneta maksājumi]+JanvārisPārdošana[PayPal maksājumi]+JanvārisPārdošana[Kredītkartes maksājumi]),"") -> -4.50 € | M3: =JanvārisPārdošana[Piegādes izdevumi]-JanvārisPārdošana[Maksa par piegādi] -> 2.00 € | N3: =JanvārisPārdošana[Peļņa/zaudējumi no pārdošanas]+JanvārisPārdošana[Peļņa/zaudējumi no pārvadājumiem] -> -2.50 €
A4: 2012 | C4: TP004 | D4: Pozīcija 2 | E4: 2.00 € | F4: 30.00 € | G4: 0.50 € | H4: 0.50 € | J4: 4.00 € | K4: 5.50 € | L4: =IFERROR(JanvārisPārdošana[Pārdošanas cena]-(JanvārisPārdošana[Pirkuma cena]+JanvārisPārdošana[Interneta maksājumi]+JanvārisPārdošana[PayPal maksājumi]+JanvārisPārdošana[Kredītkartes maksājumi]),"") -> 27.00 € | M4: =JanvārisPārdošana[Piegādes izdevumi]-JanvārisPārdošana[Maksa par piegādi] -> -1.50 € | N4: =JanvārisPārdošana[Peļņa/zaudējumi no pārdošanas]+JanvārisPārdošana[Peļņa/zaudējumi no pārvadājumiem] -> 25.50 €
C5: RS99 | D5: Pozīcija 3 | E5: 17.00 € | F5: 23.00 € | G5: 2.00 € | I5: 2.00 € | J5: 3.00 € | K5: 2.00 € | L5: =IFERROR(JanvārisPārdošana[Pārdošanas cena]-(JanvārisPārdošana[Pirkuma cena]+JanvārisPārdošana[Interneta maksājumi]+JanvārisPārdošana[PayPal maksājumi]+JanvārisPārdošana[Kredītkartes maksājumi]),"") -> 2.00 € | M5: =JanvārisPārdošana[Piegādes izdevumi]-JanvārisPārdošana[Maksa par piegādi] -> 1.00 € | N5: =JanvārisPārdošana[Peļņa/zaudējumi no pārdošanas]+JanvārisPārdošana[Peļņa/zaudējumi no pārvadājumiem] -> 3.00 €
A6: Kopējā peļņa/zaudējumi | C6: ST001 | D6: Pozīcija 4 | E6: 120.00 € | F6: 180.00 € | G6: 2.00 € | H6: 1.50 € | J6: 3.00 € | K6: 2.00 € | L6: =IFERROR(JanvārisPārdošana[Pārdošanas cena]-(JanvārisPārdošana[Pirkuma cena]+JanvārisPārdošana[Interneta maksājumi]+JanvārisPārdošana[PayPal maksājumi]+JanvārisPārdošana[Kredītkartes maksājumi]),"") -> 56.50 € | M6: =JanvārisPārdošana[Piegādes izdevumi]-JanvārisPārdošana[Maksa par piegādi] -> 1.00 € | N6: =JanvārisPārdošana[Peļņa/zaudējumi no pārdošanas]+JanvārisPārdošana[Peļņa/zaudējumi no pārvadājumiem] -> 57.50 €
A7: =JanvārisPārdošana[[#Totals],[Kopējā peļņa/zaudējumi]] -> 89.00 € | C7: ST001 | D7: Pozīcija 5 | E7: 10.00 € | F7: 12.00 € | G7: 2.00 € | H7: 1.50 € | J7: 14.00 € | K7: 7.00 € | L7: =IFERROR(JanvārisPārdošana[Pārdošanas cena]-(JanvārisPārdošana[Pirkuma cena]+JanvārisPārdošana[Interneta maksājumi]+JanvārisPārdošana[PayPal maksājumi]+JanvārisPārdošana[Kredītkartes maksājumi]),"") -> -1.50 € | M7: =JanvārisPārdošana[Piegādes izdevumi]-JanvārisPārdošana[Maksa par piegādi] -> 7.00 € | N7: =JanvārisPārdošana[Peļņa/zaudējumi no pārdošanas]+JanvārisPārdošana[Peļņa/zaudējumi no pārvadājumiem] -> 5.50 €
C8: Kopā | D8: ="Pārdotie vienumi: "&SUBTOTAL(103,JanvārisPārdošana[Pozīcijas apraksts]) -> Pārdotie vienumi: 5 | E8: =SUBTOTAL(109,JanvārisPārdošana[Pirkuma cena]) -> 154.00 € | F8: =SUBTOTAL(109,JanvārisPārdošana[Pārdošanas cena]) -> 249.00 € | G8: =SUBTOTAL(109,JanvārisPārdošana[Interneta maksājumi]) -> 8.50 € | H8: =SUBTOTAL(109,JanvārisPārdošana[PayPal maksājumi]) -> 5.00 € | I8: =SUBTOTAL(109,JanvārisPārdošana[Kredītkartes maksājumi]) -> 2.00 € | J8: =SUBTOTAL(109,JanvārisPārdošana[Piegādes izdevumi]) -> 28.00 € | K8: =SUBTOTAL(109,JanvārisPārdošana[Maksa par piegādi]) -> 18.50 € | L8: =SUBTOTAL(109,JanvārisPārdošana[Peļņa/zaudējumi no pārdošanas]) -> 79.50 € | M8: =SUBTOTAL(109,JanvārisPārdošana[Peļņa/zaudējumi no pārvadājumiem]) -> 9.50 € | N8: =SUBTOTAL(109,JanvārisPārdošana[Kopējā peļņa/zaudējumi]) -> 89.00 €
A9: Peļņas/zaudējumu tendence

Sheet Februāris
A1: FEBRUĀRIS
A2: Pārdošana tiešsaistē | C2: Izsoles ID | D2: Pozīcijas apraksts | E2: Pirkuma cena | F2: Pārdošanas cena | G2: Interneta maksājumi | H2: PayPal maksājumi | I2: Kredītkartes maksājumi | J2: Piegādes izdevumi | K2: Maksa par piegādi | L2: Peļņa/zaudējumi no pārdošanas | M2: Peļņa/zaudējumi no pārvadājumiem | N2: Kopējā peļņa/zaudējumi
A3: Gads | C3: TS020 | D3: Pozīcija 1 | E3: 10.00 € | F3: 175.00 € | G3: 3.00 € | H3: 1.50 € | I3: 0.00 € | J3: 7.00 € | K3: 5.00 € | L3: =IFERROR(FebruārisPārdošana[Pārdošanas cena]-(FebruārisPārdošana[Pirkuma cena]+FebruārisPārdošana[Interneta maksājumi]+FebruārisPārdošana[PayPal maksājumi]+FebruārisPārdošana[Kredītkartes maksājumi]),"") -> 160.50 € | M3: =FebruārisPārdošana[Piegādes izdevumi]-FebruārisPārdošana[Maksa par piegādi] -> 2.00 € | N3: =FebruārisPārdošana[Peļņa/zaudējumi no pārdošanas]+FebruārisPārdošana[Peļņa/zaudējumi no pārvadājumiem] -> 162.50 €
A4: =PārdošanasGads -> 2012 | C4: TS021 | D4: Pozīcija 2 | E4: 32.00 € | F4: 100.00 € | G4: 3.00 € | I4: 3.20 € | J4: 20.00 € | K4: 13.00 € | L4: =IFERROR(FebruārisPārdošana[Pārdošanas cena]-(FebruārisPārdošana[Pirkuma cena]+FebruārisPārdošana[Interneta maksājumi]+FebruārisPārdošana[PayPal maksājumi]+FebruārisPārdošana[Kredītkartes maksājumi]),"") -> 61.80 € | M4: =FebruārisPārdošana[Piegādes izdevumi]-FebruārisPārdošana[Maksa par piegādi] -> 7.00 € | N4: =FebruārisPārdošana[Peļņa/zaudējumi no pārdošanas]+FebruārisPārdošana[Peļņa/zaudējumi no pārvadājumiem] -> 68.80 €
C5: TS022 | D5: Pozīcija 3 | E5: 3.00 € | F5: 7.00 € | G5: 2.00 € | I5: 2.00 € | J5: 0.50 € | K5: 1.20 € | L5: =IFERROR(FebruārisPārdošana[Pārdošanas cena]-(FebruārisPārdošana[Pirkuma cena]+FebruārisPārdošana[Interneta maksājumi]+FebruārisPārdošana[PayPal maksājumi]+FebruārisPārdošana[Kredītkartes maksājumi]),"") -> 0.00 € | M5: =FebruārisPārdošana[Piegādes izdevumi]-FebruārisPārdošana[Maksa par piegādi] -> -0.70 € | N5: =FebruārisPārdošana[Peļņa/zaudējumi no pārdošanas]+FebruārisPārdošana[Peļņa/zaudējumi no pārvadājumiem] -> -0.70 €
A6: Kopējā peļņa/zaudējumi | C6: TS023 | D6: Pozīcija 4 | E6: 22.00 € | F6: 18.00 € | G6: 3.00 € | H6: 1.50 € | J6: 7.00 € | K6: 10.00 € | L6: =IFERROR(FebruārisPārdošana[Pārdošanas cena]-(FebruārisPārdošana[Pirkuma cena]+FebruārisPārdošana[Interneta maksājumi]+FebruārisPārdošana[PayPal maksājumi]+FebruārisPārdošana[Kredītkartes maksājumi]),"") -> -8.50 € | M6: =FebruārisPārdošana[Piegādes izdevumi]-FebruārisPārdošana[Maksa par piegādi] -> -3.00 € | N6: =FebruārisPārdošana[Peļņa/zaudējumi no pārdošanas]+FebruārisPārdošana[Peļņa/zaudējumi no pārvadājumiem] -> -11.50 €
A7: =FebruārisPārdošana[[#Totals],[Kopējā peļņa/zaudējumi]] -> 224.60 € | C7: TS024 | D7: Pozīcija 5 | E7: 10.00 € | F7: 12.00 € | G7: 2.00 € | H7: 1.50 € | J7: 14.00 € | K7: 7.00 € | L7: =IFERROR(FebruārisPārdošana[Pārdošanas cena]-(FebruārisPārdošana[Pirkuma cena]+FebruārisPārdošana[Interneta maksājumi]+FebruārisPārdošana[PayPal maksājumi]+FebruārisPārdošana[Kredītkartes maksājumi]),"") -> -1.50 € | M7: =FebruārisPārdošana[Piegādes izdevumi]-FebruārisPārdošana[Maksa par piegādi] -> 7.00 € | N7: =FebruārisPārdošana[Peļņa/zaudējumi no pārdošanas]+FebruārisPārdošana[Peļņa/zaudējumi no pārvadājumiem] -> 5.50 €
C8: Kopā | D8: ="Pārdotie vienumi: "&SUBTOTAL(103,FebruārisPārdošana[Pozīcijas apraksts]) -> Pārdotie vienumi: 5 | E8: =SUBTOTAL(109,FebruārisPārdošana[Pirkuma cena]) -> 77.00 € | F8: =SUBTOTAL(109,FebruārisPārdošana[Pārdošanas cena]) -> 312.00 € | G8: =SUBTOTAL(109,FebruārisPārdošana[Interneta maksājumi]) -> 13.00 € | H8: =SUBTOTAL(109,FebruārisPārdošana[PayPal maksājumi]) -> 4.50 € | I8: =SUBTOTAL(109,FebruārisPārdošana[Kredītkartes maksājumi]) -> 5.20 € | J8: =SUBTOTAL(109,FebruārisPārdošana[Piegādes izdevumi]) -> 48.50 € | K8: =SUBTOTAL(109,FebruārisPārdošana[Maksa par piegādi]) -> 36.20 € | L8: =SUBTOTAL(109,FebruārisPārdošana[Peļņa/zaudējumi no pārdošanas]) -> 212.30 € | M8: =SUBTOTAL(109,FebruārisPārdošana[Peļņa/zaudējumi no pārvadājumiem]) -> 12.30 € | N8: =SUBTOTAL(109,FebruārisPārdošana[Kopējā peļņa/zaudējumi]) -> 224.60 €
A9: Peļņas/zaudējumu tendence

Sheet Marts
A1: MARTS
A2: Pārdošana tiešsaistē | C2: Izsoles ID | D2: Pozīcijas apraksts | E2: Pirkuma cena | F2: Pārdošanas cena | G2: Interneta maksājumi | H2: PayPal maksājumi | I2: Kredītkartes maksājumi | J2: Piegādes izdevumi | K2: Maksa par piegādi | L2: Peļņa/zaudējumi no pārdošanas | M2: Peļņa/zaudējumi no pārvadājumiem | N2: Kopējā peļņa/zaudējumi
A3: Gads | L3: =IFERROR(MartsPārdošana[Pārdošanas cena]-(MartsPārdošana[Pirkuma cena]+MartsPārdošana[Interneta maksājumi]+MartsPārdošana[PayPal maksājumi]+MartsPārdošana[Kredītkartes maksājumi]),"") -> 0.00 € | M3: =MartsPārdošana[Piegādes izdevumi]-MartsPārdošana[Maksa par piegādi] -> 0.00 € | N3: =MartsPārdošana[Peļņa/zaudējumi no pārdošanas]+MartsPārdošana[Peļņa/zaudējumi no pārvadājumiem] -> 0.00 €
A4: =PārdošanasGads -> 2012 | L4: =IFERROR(MartsPārdošana[Pārdošanas cena]-(MartsPārdošana[Pirkuma cena]+MartsPārdošana[Interneta maksājumi]+MartsPārdošana[PayPal maksājumi]+MartsPārdošana[Kredītkartes maksājumi]),"") -> 0.00 € | M4: =MartsPārdošana[Piegādes izdevumi]-MartsPārdošana[Maksa par piegādi] -> 0.00 € | N4: =MartsPārdošana[Peļņa/zaudējumi no pārdošanas]+MartsPārdošana[Peļņa/zaudējumi no pārvadājumiem] -> 0.00 €
L5: =IFERROR(MartsPārdošana[Pārdošanas cena]-(MartsPārdošana[Pirkuma cena]+MartsPārdošana[Interneta maksājumi]+MartsPārdošana[PayPal maksājumi]+MartsPārdošana[Kredītkartes maksājumi]),"") -> 0.00 € | M5: =MartsPārdošana[Piegādes izdevumi]-MartsPārdošana[Maksa par piegādi] -> 0.00 € | N5: =MartsPārdošana[Peļņa/zaudējumi no pārdošanas]+MartsPārdošana[Peļņa/zaudējumi no pārvadājumiem] -> 0.00 €
A6: Kopējā peļņa/zaudējumi | L6: =IFERROR(MartsPārdošana[Pārdošanas cena]-(MartsPārdošana[Pirkuma cena]+MartsPārdošana[Interneta maksājumi]+MartsPārdošana[PayPal maksājumi]+MartsPārdošana[Kredītkartes maksājumi]),"") -> 0.00 € | M6: =MartsPārdošana[Piegādes izdevumi]-MartsPārdošana[Maksa par piegādi] -> 0.00 € | N6: =MartsPārdošana[Peļņa/zaudējumi no pārdošanas]+MartsPārdošana[Peļņa/zaudējumi no pārvadājumiem] -> 0.00 €
A7: =MartsPārdošana[[#Totals],[Kopējā peļņa/zaudējumi]] -> 0.00 € | L7: =IFERROR(MartsPārdošana[Pārdošanas cena]-(MartsPārdošana[Pirkuma cena]+MartsPārdošana[Interneta maksājumi]+MartsPārdošana[PayPal maksājumi]+MartsPārdošana[Kredītkartes maksājumi]),"") -> 0.00 € | M7: =MartsPārdošana[Piegādes izdevumi]-MartsPārdošana[Maksa par piegādi] -> 0.00 € | N7: =MartsPārdošana[Peļņa/zaudējumi no pārdošanas]+MartsPārdošana[Peļņa/zaudējumi no pārvadājumiem] -> 0.00 €
C8: Kopā | D8: ="Pārdotie vienumi: "&SUBTOTAL(103,MartsPārdošana[Pozīcijas apraksts]) -> Pārdotie vienumi: 0 | E8: =SUBTOTAL(109,MartsPārdošana[Pirkuma cena]) -> 0.00 € | F8: =SUBTOTAL(109,MartsPārdošana[Pārdošanas cena]) -> 0.00 € | G8: =SUBTOTAL(109,MartsPārdošana[Interneta maksājumi]) -> 0.00 € | H8: =SUBTOTAL(109,MartsPārdošana[PayPal maksājumi]) -> 0.00 € | I8: =SUBTOTAL(109,MartsPārdošana[Kredītkartes maksājumi]) -> 0.00 € | J8: =SUBTOTAL(109,MartsPārdošana[Piegādes izdevumi]) -> 0.00 € | K8: =SUBTOTAL(109,MartsPārdošana[Maksa par piegādi]) -> 0.00 € | L8: =SUBTOTAL(109,MartsPārdošana[Peļņa/zaudējumi no pārdošanas]) -> 0.00 € | M8: =SUBTOTAL(109,MartsPārdošana[Peļņa/zaudējumi no pārvadājumiem]) -> 0.00 € | N8: =SUBTOTAL(109,MartsPārdošana[Kopējā peļņa/zaudējumi]) -> 0.00 €
A9: Peļņas/zaudējumu tendence

Sheet Aprīlis
A1: APRĪLIS
A2: Pārdošana tiešsaistē | C2: Izsoles ID | D2: Pozīcijas apraksts | E2: Pirkuma cena | F2: Pārdošanas cena | G2: Interneta maksājumi | H2: PayPal maksājumi | I2: Kredītkartes maksājumi | J2: Piegādes izdevumi | K2: Maksa par piegādi | L2: Peļņa/zaudējumi no pārdošanas | M2: Peļņa/zaudējumi no pārvadājumiem | N2: Kopējā peļņa/zaudējumi
A3: Gads | M3: =AprīlisPārdošana[Piegādes izdevumi]-AprīlisPārdošana[Maksa par piegādi] -> 0.00 € | N3: =AprīlisPārdošana[Peļņa/zaudējumi no pārdošanas]+AprīlisPārdošana[Peļņa/zaudējumi no pārvadājumiem] -> 0.00 €
A4: =PārdošanasGads -> 2012 | M4: =AprīlisPārdošana[Piegādes izdevumi]-AprīlisPārdošana[Maksa par piegādi] -> 0.00 € | N4: =AprīlisPārdošana[Peļņa/zaudējumi no pārdošanas]+AprīlisPārdošana[Peļņa/zaudējumi no pārvadājumiem] -> 0.00 €
M5: =AprīlisPārdošana[Piegādes izdevumi]-AprīlisPārdošana[Maksa par piegādi] -> 0.00 € | N5: =AprīlisPārdošana[Peļņa/zaudējumi no pārdošanas]+AprīlisPārdošana[Peļņa/zaudējumi no pārvadājumiem] -> 0.00 €
A6: Kopējā peļņa/zaudējumi | M6: =AprīlisPārdošana[Piegādes izdevumi]-AprīlisPārdošana[Maksa par piegādi] -> 0.00 € | N6: =AprīlisPārdošana[Peļņa/zaudējumi no pārdošanas]+AprīlisPārdošana[Peļņa/zaudējumi no pārvadājumiem] -> 0.00 €
A7: =AprīlisPārdošana[[#Totals],[Kopējā peļņa/zaudējumi]] -> 0.00 € | M7: =AprīlisPārdošana[Piegādes izdevumi]-AprīlisPārdošana[Maksa par piegādi] -> 0.00 € | N7: =AprīlisPārdošana[Peļņa/zaudējumi no pārdošanas]+AprīlisPārdošana[Peļņa/zaudējumi no pārvadājumiem] -> 0.00 €
C8: Kopā | D8: ="Pārdotie vienumi: "&SUBTOTAL(103,AprīlisPārdošana[Pozīcijas apraksts]) -> Pārdotie vienumi: 0 | E8: =SUBTOTAL(109,AprīlisPārdošana[Pirkuma cena]) -> 0.00 € | F8: =SUBTOTAL(109,AprīlisPārdošana[Pārdošanas cena]) -> 0.00 € | G8: =SUBTOTAL(109,AprīlisPārdošana[Interneta maksājumi]) -> 0.00 € | H8: =SUBTOTAL(109,AprīlisPārdošana[PayPal maksājumi]) -> 0.00 € | I8: =SUBTOTAL(109,AprīlisPārdošana[Kredītkartes maksājumi]) -> 0.00 € | J8: =SUBTOTAL(109,AprīlisPārdošana[Piegādes izdevumi]) -> 0.00 € | K8: =SUBTOTAL(109,AprīlisPārdošana[Maksa par piegādi]) -> 0.00 € | L8: =SUBTOTAL(109,AprīlisPārdošana[Peļņa/zaudējumi no pārdošanas]) -> 0.00 € | M8: =SUBTOTAL(109,AprīlisPārdošana[Peļņa/zaudējumi no pārvadājumiem]) -> 0.00 € | N8: =SUBTOTAL(109,AprīlisPārdošana[Kopējā peļņa/zaudējumi]) -> 0.00 €
A9: Peļņas/zaudējumu tendence

Sheet Maijs
A1: MAIJS
A2: Pārdošana tiešsaistē | C2: Izsoles ID | D2: Pozīcijas apraksts | E2: Pirkuma cena | F2: Pārdošanas cena | G2: Interneta maksājumi | H2: PayPal maksājumi | I2: Kredītkartes maksājumi | J2: Piegādes izdevumi | K2: Maksa par piegādi | L2: Peļņa/zaudējumi no pārdošanas | M2: Peļņa/zaudējumi no pārvadājumiem | N2: Kopējā peļņa/zaudējumi
A3: Gads | M3: =MaijsPārdošana[Piegādes izdevumi]-MaijsPārdošana[Maksa par piegādi] -> 0.00 € | N3: =MaijsPārdošana[Peļņa/zaudējumi no pārdošanas]+MaijsPārdošana[Peļņa/zaudējumi no pārvadājumiem] -> 0.00 €
A4: =PārdošanasGads -> 2012 | M4: =MaijsPārdošana[Piegādes izdevumi]-MaijsPārdošana[Maksa par piegādi] -> 0.00 € | N4: =MaijsPārdošana[Peļņa/zaudējumi no pārdošanas]+MaijsPārdošana[Peļņa/zaudējumi no pārvadājumiem] -> 0.00 €
M5: =MaijsPārdošana[Piegādes izdevumi]-MaijsPārdošana[Maksa par piegādi] -> 0.00 € | N5: =MaijsPārdošana[Peļņa/zaudējumi no pārdošanas]+MaijsPārdošana[Peļņa/zaudējumi no pārvadājumiem] -> 0.00 €
A6: Kopējā peļņa/zaudējumi | M6: =MaijsPārdošana[Piegādes izdevumi]-MaijsPārdošana[Maksa par piegādi] -> 0.00 € | N6: =MaijsPārdošana[Peļņa/zaudējumi no pārdošanas]+MaijsPārdošana[Peļņa/zaudējumi no pārvadājumiem] -> 0.00 €
A7: =MaijsPārdošana[[#Totals],[Kopējā peļņa/zaudējumi]] -> 0.00 € | M7: =MaijsPārdošana[Piegādes izdevumi]-MaijsPārdošana[Maksa par piegādi] -> 0.00 € | N7: =MaijsPārdošana[Peļņa/zaudējumi no pārdošanas]+MaijsPārdošana[Peļņa/zaudējumi no pārvadājumiem] -> 0.00 €
C8: Kopā | D8: ="Pārdotie vienumi: "&SUBTOTAL(103,MaijsPārdošana[Pozīcijas apraksts]) -> Pārdotie vienumi: 0 | E8: =SUBTOTAL(109,MaijsPārdošana[Pirkuma cena]) -> 0.00 € | F8: =SUBTOTAL(109,MaijsPārdošana[Pārdošanas cena]) -> 0.00 € | G8: =SUBTOTAL(109,MaijsPārdošana[Interneta maksājumi]) -> 0.00 € | H8: =SUBTOTAL(109,MaijsPārdošana[PayPal maksājumi]) -> 0.00 € | I8: =SUBTOTAL(109,MaijsPārdošana[Kredītkartes maksājumi]) -> 0.00 € | J8: =SUBTOTAL(109,MaijsPārdošana[Piegādes izdevumi]) -> 0.00 € | K8: =SUBTOTAL(109,MaijsPārdošana[Maksa par piegādi]) -> 0.00 € | L8: =SUBTOTAL(109,MaijsPārdošana[Peļņa/zaudējumi no pārdošanas]) -> 0.00 € | M8: =SUBTOTAL(109,MaijsPārdošana[Peļņa/zaudējumi no pārvadājumiem]) -> 0.00 € | N8: =SUBTOTAL(109,MaijsPārdošana[Kopējā peļņa/zaudējumi]) -> 0.00 €
A9: Peļņas/zaudējumu tendence

Sheet Jūnijs
A1: JŪNIJS
A2: Pārdošana tiešsaistē | C2: Izsoles ID | D2: Pozīcijas apraksts | E2: Pirkuma cena | F2: Pārdošanas cena | G2: Interneta maksājumi | H2: PayPal maksājumi | I2: Kredītkartes maksājumi | J2: Piegādes izdevumi | K2: Maksa par piegādi | L2: Peļņa/zaudējumi no pārdošanas | M2: Peļņa/zaudējumi no pārvadājumiem | N2: Kopējā peļņa/zaudējumi
A3: Gads | M3: =JūnijsPārdošana[Piegādes izdevumi]-JūnijsPārdošana[Maksa par piegādi] -> 0.00 € | N3: =JūnijsPārdošana[Peļņa/zaudējumi no pārdošanas]+JūnijsPārdošana[Peļņa/zaudējumi no pārvadājumiem] -> 0.00 €
A4: =PārdošanasGads -> 2012 | M4: =JūnijsPārdošana[Piegādes izdevumi]-JūnijsPārdošana[Maksa par piegādi] -> 0.00 € | N4: =JūnijsPārdošana[Peļņa/zaudējumi no pārdošanas]+JūnijsPārdošana[Peļņa/zaudējumi no pārvadājumiem] -> 0.00 €
M5: =JūnijsPārdošana[Piegādes izdevumi]-JūnijsPārdošana[Maksa par piegādi] -> 0.00 € | N5: =JūnijsPārdošana[Peļņa/zaudējumi no pārdošanas]+JūnijsPārdošana[Peļņa/zaudējumi no pārvadājumiem] -> 0.00 €
A6: Kopējā peļņa/zaudējumi | M6: =JūnijsPārdošana[Piegādes izdevumi]-JūnijsPārdošana[Maksa par piegādi] -> 0.00 € | N6: =JūnijsPārdošana[Peļņa/zaudējumi no pārdošanas]+JūnijsPārdošana[Peļņa/zaudējumi no pārvadājumiem] -> 0.00 €
A7: =JūnijsPārdošana[[#Totals],[Kopējā peļņa/zaudējumi]] -> 0.00 € | M7: =JūnijsPārdošana[Piegādes izdevumi]-JūnijsPārdošana[Maksa par piegādi] -> 0.00 € | N7: =JūnijsPārdošana[Peļņa/zaudējumi no pārdošanas]+JūnijsPārdošana[Peļņa/zaudējumi no pārvadājumiem] -> 0.00 €
C8: Kopā | D8: ="Pārdotie vienumi: "&SUBTOTAL(103,JūnijsPārdošana[Pozīcijas apraksts]) -> Pārdotie vienumi: 0 | E8: =SUBTOTAL(109,JūnijsPārdošana[Pirkuma cena]) -> 0.00 € | F8: =SUBTOTAL(109,JūnijsPārdošana[Pārdošanas cena]) -> 0.00 € | G8: =SUBTOTAL(109,JūnijsPārdošana[Interneta maksājumi]) -> 0.00 € | H8: =SUBTOTAL(109,JūnijsPārdošana[PayPal maksājumi]) -> 0.00 € | I8: =SUBTOTAL(109,JūnijsPārdošana[Kredītkartes maksājumi]) -> 0.00 € | J8: =SUBTOTAL(109,JūnijsPārdošana[Piegādes izdevumi]) -> 0.00 € | K8: =SUBTOTAL(109,JūnijsPārdošana[Maksa par piegādi]) -> 0.00 € | L8: =SUBTOTAL(109,JūnijsPārdošana[Peļņa/zaudējumi no pārdošanas]) -> 0.00 € | M8: =SUBTOTAL(109,JūnijsPārdošana[Peļņa/zaudējumi no pārvadājumiem]) -> 0.00 € | N8: =SUBTOTAL(109,JūnijsPārdošana[Kopējā peļņa/zaudējumi]) -> 0.00 €
A9: Peļņas/zaudējumu tendence

Sheet Jūlijs
A1: JŪLIJS
A2: Pārdošana tiešsaistē | C2: Izsoles ID | D2: Pozīcijas apraksts | E2: Pirkuma cena | F2: Pārdošanas cena | G2: Interneta maksājumi | H2: PayPal maksājumi | I2: Kredītkartes maksājumi | J2: Piegādes izdevumi | K2: Maksa par piegādi | L2: Peļņa/zaudējumi no pārdošanas | M2: Peļņa/zaudējumi no pārvadājumiem | N2: Kopējā peļņa/zaudējumi
A3: Gads | M3: =JūlijsPārdošana[Piegādes izdevumi]-JūlijsPārdošana[Maksa par piegādi] -> 0.00 € | N3: =JūlijsPārdošana[Peļņa/zaudējumi no pārdošanas]+JūlijsPārdošana[Peļņa/zaudējumi no pārvadājumiem] -> 0.00 €
A4: =PārdošanasGads -> 2012 | M4: =JūlijsPārdošana[Piegādes izdevumi]-JūlijsPārdošana[Maksa par piegādi] -> 0.00 € | N4: =JūlijsPārdošana[Peļņa/zaudējumi no pārdošanas]+JūlijsPārdošana[Peļņa/zaudējumi no pārvadājumiem] -> 0.00 €
M5: =JūlijsPārdošana[Piegādes izdevumi]-JūlijsPārdošana[Maksa par piegādi] -> 0.00 € | N5: =JūlijsPārdošana[Peļņa/zaudējumi no pārdošanas]+JūlijsPārdošana[Peļņa/zaudējumi no pārvadājumiem] -> 0.00 €
A6: Kopējā peļņa/zaudējumi | M6: =JūlijsPārdošana[Piegādes izdevumi]-JūlijsPārdošana[Maksa par piegādi] -> 0.00 € | N6: =JūlijsPārdošana[Peļņa/zaudējumi no pārdošanas]+JūlijsPārdošana[Peļņa/zaudējumi no pārvadājumiem] -> 0.00 €
A7: =JūlijsPārdošana[[#Totals],[Kopējā peļņa/zaudējumi]] -> 0.00 € | M7: =JūlijsPārdošana[Piegādes izdevumi]-JūlijsPārdošana[Maksa par piegādi] -> 0.00 € | N7: =JūlijsPārdošana[Peļņa/zaudējumi no pārdošanas]+JūlijsPārdošana[Peļņa/zaudējumi no pārvadājumiem] -> 0.00 €
C8: Kopā | D8: ="Pārdotie vienumi: "&SUBTOTAL(103,JūlijsPārdošana[Pozīcijas apraksts]) -> Pārdotie vienumi: 0 | E8: =SUBTOTAL(109,JūlijsPārdošana[Pirkuma cena]) -> 0.00 € | F8: =SUBTOTAL(109,JūlijsPārdošana[Pārdošanas cena]) -> 0.00 € | G8: =SUBTOTAL(109,JūlijsPārdošana[Interneta maksājumi]) -> 0.00 € | H8: =SUBTOTAL(109,JūlijsPārdošana[PayPal maksājumi]) -> 0.00 € | I8: =SUBTOTAL(109,JūlijsPārdošana[Kredītkartes maksājumi]) -> 0.00 € | J8: =SUBTOTAL(109,JūlijsPārdošana[Piegādes izdevumi]) -> 0.00 € | K8: =SUBTOTAL(109,JūlijsPārdošana[Maksa par piegādi]) -> 0.00 € | L8: =SUBTOTAL(109,JūlijsPārdošana[Peļņa/zaudējumi no pārdošanas]) -> 0.00 € | M8: =SUBTOTAL(109,JūlijsPārdošana[Peļņa/zaudējumi no pārvadājumiem]) -> 0.00 € | N8: =SUBTOTAL(109,JūlijsPārdošana[Kopējā peļņa/zaudējumi]) -> 0.00 €
A9: Peļņas/zaudējumu tendence

Sheet August
A1: AUGUSTS
A2: Pārdošana tiešsaistē | C2: Izsoles ID | D2: Pozīcijas apraksts | E2: Pirkuma cena | F2: Pārdošanas cena | G2: Interneta maksājumi | H2: PayPal maksājumi | I2: Kredītkartes maksājumi | J2: Piegādes izdevumi | K2: Maksa par piegādi | L2: Peļņa/zaudējumi no pārdošanas | M2: Peļņa/zaudējumi no pārvadājumiem | N2: Kopējā peļņa/zaudējumi
A3: Gads | M3: =AugustsPārdošana[Piegādes izdevumi]-AugustsPārdošana[Maksa par piegādi] -> 0.00 € | N3: =AugustsPārdošana[Peļņa/zaudējumi no pārdošanas]+AugustsPārdošana[Peļņa/zaudējumi no pārvadājumiem] -> 0.00 €
A4: =PārdošanasGads -> 2012 | M4: =AugustsPārdošana[Piegādes izdevumi]-AugustsPārdošana[Maksa par piegādi] -> 0.00 € | N4: =AugustsPārdošana[Peļņa/zaudējumi no pārdošanas]+AugustsPārdošana[Peļņa/zaudējumi no pārvadājumiem] -> 0.00 €
M5: =AugustsPārdošana[Piegādes izdevumi]-AugustsPārdošana[Maksa par piegādi] -> 0.00 € | N5: =AugustsPārdošana[Peļņa/zaudējumi no pārdošanas]+AugustsPārdošana[Peļņa/zaudējumi no pārvadājumiem] -> 0.00 €
A6: Kopējā peļņa/zaudējumi | M6: =AugustsPārdošana[Piegādes izdevumi]-AugustsPārdošana[Maksa par piegādi] -> 0.00 € | N6: =AugustsPārdošana[Peļņa/zaudējumi no pārdošanas]+AugustsPārdošana[Peļņa/zaudējumi no pārvadājumiem] -> 0.00 €
A7: =AugustsPārdošana[[#Totals],[Kopējā peļņa/zaudējumi]] -> 0.00 € | M7: =AugustsPārdošana[Piegādes izdevumi]-AugustsPārdošana[Maksa par piegādi] -> 0.00 € | N7: =AugustsPārdošana[Peļņa/zaudējumi no pārdošanas]+AugustsPārdošana[Peļņa/zaudējumi no pārvadājumiem] -> 0.00 €
C8: Kopā | D8: ="Pārdotie vienumi: "&SUBTOTAL(103,AugustsPārdošana[Pozīcijas apraksts]) -> Pārdotie vienumi: 0 | E8: =SUBTOTAL(109,AugustsPārdošana[Pirkuma cena]) -> 0.00 € | F8: =SUBTOTAL(109,AugustsPārdošana[Pārdošanas cena]) -> 0.00 € | G8: =SUBTOTAL(109,AugustsPārdošana[Interneta maksājumi]) -> 0.00 € | H8: =SUBTOTAL(109,AugustsPārdošana[PayPal maksājumi]) -> 0.00 € | I8: =SUBTOTAL(109,AugustsPārdošana[Kredītkartes maksājumi]) -> 0.00 € | J8: =SUBTOTAL(109,AugustsPārdošana[Piegādes izdevumi]) -> 0.00 € | K8: =SUBTOTAL(109,AugustsPārdošana[Maksa par piegādi]) -> 0.00 € | L8: =SUBTOTAL(109,AugustsPārdošana[Peļņa/zaudējumi no pārdošanas]) -> 0.00 € | M8: =SUBTOTAL(109,AugustsPārdošana[Peļņa/zaudējumi no pārvadājumiem]) -> 0.00 € | N8: =SUBTOTAL(109,AugustsPārdošana[Kopējā peļņa/zaudējumi]) -> 0.00 €
A9: Peļņas/zaudējumu tendence

Sheet Septembris
A1: SEPTEMBRIS
A2: Pārdošana tiešsaistē | C2: Izsoles ID | D2: Pozīcijas apraksts | E2: Pirkuma cena | F2: Pārdošanas cena | G2: Interneta maksājumi | H2: PayPal maksājumi | I2: Kredītkartes maksājumi | J2: Piegādes izdevumi | K2: Maksa par piegādi | L2: Peļņa/zaudējumi no pārdošanas | M2: Peļņa/zaudējumi no pārvadājumiem | N2: Kopējā peļņa/zaudējumi
A3: Gads | M3: =SeptembrisPārdošana[Piegādes izdevumi]-SeptembrisPārdošana[Maksa par piegādi] -> 0.00 € | N3: =SeptembrisPārdošana[Peļņa/zaudējumi no pārdošanas]+SeptembrisPārdošana[Peļņa/zaudējumi no pārvadājumiem] -> 0.00 €
A4: =PārdošanasGads -> 2012 | M4: =SeptembrisPārdošana[Piegādes izdevumi]-SeptembrisPārdošana[Maksa par piegādi] -> 0.00 € | N4: =SeptembrisPārdošana[Peļņa/zaudējumi no pārdošanas]+SeptembrisPārdošana[Peļņa/zaudējumi no pārvadājumiem] -> 0.00 €
M5: =SeptembrisPārdošana[Piegādes izdevumi]-SeptembrisPārdošana[Maksa par piegādi] -> 0.00 € | N5: =SeptembrisPārdošana[Peļņa/zaudējumi no pārdošanas]+SeptembrisPārdošana[Peļņa/zaudējumi no pārvadājumiem] -> 0.00 €
A6: Kopējā peļņa/zaudējumi | M6: =SeptembrisPārdošana[Piegādes izdevumi]-SeptembrisPārdošana[Maksa par piegādi] -> 0.00 € | N6: =SeptembrisPārdošana[Peļņa/zaudējumi no pārdošanas]+SeptembrisPārdošana[Peļņa/zaudējumi no pārvadājumiem] -> 0.00 €
A7: =SeptembrisPārdošana[[#Totals],[Kopējā peļņa/zaudējumi]] -> 0.00 € | M7: =SeptembrisPārdošana[Piegādes izdevumi]-SeptembrisPārdošana[Maksa par piegādi] -> 0.00 € | N7: =SeptembrisPārdošana[Peļņa/zaudējumi no pārdošanas]+SeptembrisPārdošana[Peļņa/zaudējumi no pārvadājumiem] -> 0.00 €
C8: Kopā | D8: ="Pārdotie vienumi: "&SUBTOTAL(103,SeptembrisPārdošana[Pozīcijas apraksts]) -> Pārdotie vienumi: 0 | E8: =SUBTOTAL(109,SeptembrisPārdošana[Pirkuma cena]) -> 0.00 € | F8: =SUBTOTAL(109,SeptembrisPārdošana[Pārdošanas cena]) -> 0.00 € | G8: =SUBTOTAL(109,SeptembrisPārdošana[Interneta maksājumi]) -> 0.00 € | H8: =SUBTOTAL(109,SeptembrisPārdošana[PayPal maksājumi]) -> 0.00 € | I8: =SUBTOTAL(109,SeptembrisPārdošana[Kredītkartes maksājumi]) -> 0.00 € | J8: =SUBTOTAL(109,SeptembrisPārdošana[Piegādes izdevumi]) -> 0.00 € | K8: =SUBTOTAL(109,SeptembrisPārdošana[Maksa par piegādi]) -> 0.00 € | L8: =SUBTOTAL(109,SeptembrisPārdošana[Peļņa/zaudējumi no pārdošanas]) -> 0.00 € | M8: =SUBTOTAL(109,SeptembrisPārdošana[Peļņa/zaudējumi no pārvadājumiem]) -> 0.00 € | N8: =SUBTOTAL(109,SeptembrisPārdošana[Kopējā peļņa/zaudējumi]) -> 0.00 €
A9: Peļņas/zaudējumu tendence

Sheet Oktobris
A1: OKTOBRIS
A2: Pārdošana tiešsaistē | C2: Izsoles ID | D2: Pozīcijas apraksts | E2: Pirkuma cena | F2: Pārdošanas cena | G2: Interneta maksājumi | H2: PayPal maksājumi | I2: Kredītkartes maksājumi | J2: Piegādes izdevumi | K2: Maksa par piegādi | L2: Peļņa/zaudējumi no pārdošanas | M2: Peļņa/zaudējumi no pārvadājumiem | N2: Kopējā peļņa/zaudējumi
A3: Gads | M3: =OktobrisPārdošana[Piegādes izdevumi]-OktobrisPārdošana[Maksa par piegādi] -> 0.00 € | N3: =OktobrisPārdošana[Peļņa/zaudējumi no pārdošanas]+OktobrisPārdošana[Peļņa/zaudējumi no pārvadājumiem] -> 0.00 €
A4: =PārdošanasGads -> 2012 | M4: =OktobrisPārdošana[Piegādes izdevumi]-OktobrisPārdošana[Maksa par piegādi] -> 0.00 € | N4: =OktobrisPārdošana[Peļņa/zaudējumi no pārdošanas]+OktobrisPārdošana[Peļņa/zaudējumi no pārvadājumiem] -> 0.00 €
M5: =OktobrisPārdošana[Piegādes izdevumi]-OktobrisPārdošana[Maksa par piegādi] -> 0.00 € | N5: =OktobrisPārdošana[Peļņa/zaudējumi no pārdošanas]+OktobrisPārdošana[Peļņa/zaudējumi no pārvadājumiem] -> 0.00 €
A6: Kopējā peļņa/zaudējumi | M6: =OktobrisPārdošana[Piegādes izdevumi]-OktobrisPārdošana[Maksa par piegādi] -> 0.00 € | N6: =OktobrisPārdošana[Peļņa/zaudējumi no pārdošanas]+OktobrisPārdošana[Peļņa/zaudējumi no pārvadājumiem] -> 0.00 €
A7: =OktobrisPārdošana[[#Totals],[Kopējā peļņa/zaudējumi]] -> 0.00 € | M7: =OktobrisPārdošana[Piegādes izdevumi]-OktobrisPārdošana[Maksa par piegādi] -> 0.00 € | N7: =OktobrisPārdošana[Peļņa/zaudējumi no pārdošanas]+OktobrisPārdošana[Peļņa/zaudējumi no pārvadājumiem] -> 0.00 €
C8: Kopā | D8: ="Pārdotie vienumi: "&SUBTOTAL(103,OktobrisPārdošana[Pozīcijas apraksts]) -> Pārdotie vienumi: 0 | E8: =SUBTOTAL(109,OktobrisPārdošana[Pirkuma cena]) -> 0.00 € | F8: =SUBTOTAL(109,OktobrisPārdošana[Pārdošanas cena]) -> 0.00 € | G8: =SUBTOTAL(109,OktobrisPārdošana[Interneta maksājumi]) -> 0.00 € | H8: =SUBTOTAL(109,OktobrisPārdošana[PayPal maksājumi]) -> 0.00 € | I8: =SUBTOTAL(109,OktobrisPārdošana[Kredītkartes maksājumi]) -> 0.00 € | J8: =SUBTOTAL(109,OktobrisPārdošana[Piegādes izdevumi]) -> 0.00 € | K8: =SUBTOTAL(109,OktobrisPārdošana[Maksa par piegādi]) -> 0.00 € | L8: =SUBTOTAL(109,OktobrisPārdošana[Peļņa/zaudējumi no pārdošanas]) -> 0.00 € | M8: =SUBTOTAL(109,OktobrisPārdošana[Peļņa/zaudējumi no pārvadājumiem]) -> 0.00 € | N8: =SUBTOTAL(109,OktobrisPārdošana[Kopējā peļņa/zaudējumi]) -> 0.00 €
A9: Peļņas/zaudējumu tendence

Sheet Novembris
A1: NOVEMBRIS
A2: Pārdošana tiešsaistē | C2: Izsoles ID | D2: Pozīcijas apraksts | E2: Pirkuma cena | F2: Pārdošanas cena | G2: Interneta maksājumi | H2: PayPal maksājumi | I2: Kredītkartes maksājumi | J2: Piegādes izdevumi | K2: Maksa par piegādi | L2: Peļņa/zaudējumi no pārdošanas | M2: Peļņa/zaudējumi no pārvadājumiem | N2: Kopējā peļņa/zaudējumi
A3: Gads | M3: =NovembrisPārdošana[Piegādes izdevumi]-NovembrisPārdošana[Maksa par piegādi] -> 0.00 € | N3: =NovembrisPārdošana[Peļņa/zaudējumi no pārdošanas]+NovembrisPārdošana[Peļņa/zaudējumi no pārvadājumiem] -> 0.00 €
A4: =PārdošanasGads -> 2012 | M4: =NovembrisPārdošana[Piegādes izdevumi]-NovembrisPārdošana[Maksa par piegādi] -> 0.00 € | N4: =NovembrisPārdošana[Peļņa/zaudējumi no pārdošanas]+NovembrisPārdošana[Peļņa/zaudējumi no pārvadājumiem] -> 0.00 €
M5: =NovembrisPārdošana[Piegādes izdevumi]-NovembrisPārdošana[Maksa par piegādi] -> 0.00 € | N5: =NovembrisPārdošana[Peļņa/zaudējumi no pārdošanas]+NovembrisPārdošana[Peļņa/zaudējumi no pārvadājumiem] -> 0.00 €
A6: Kopējā peļņa/zaudējumi | M6: =NovembrisPārdošana[Piegādes izdevumi]-NovembrisPārdošana[Maksa par piegādi] -> 0.00 € | N6: =NovembrisPārdošana[Peļņa/zaudējumi no pārdošanas]+NovembrisPārdošana[Peļņa/zaudējumi no pārvadājumiem] -> 0.00 €
A7: =NovembrisPārdošana[[#Totals],[Kopējā peļņa/zaudējumi]] -> 0.00 € | M7: =NovembrisPārdošana[Piegādes izdevumi]-NovembrisPārdošana[Maksa par piegādi] -> 0.00 € | N7: =NovembrisPārdošana[Peļņa/zaudējumi no pārdošanas]+NovembrisPārdošana[Peļņa/zaudējumi no pārvadājumiem] -> 0.00 €
C8: Kopā | D8: ="Pārdotie vienumi: "&SUBTOTAL(103,NovembrisPārdošana[Pozīcijas apraksts]) -> Pārdotie vienumi: 0 | E8: =SUBTOTAL(109,NovembrisPārdošana[Pirkuma cena]) -> 0.00 € | F8: =SUBTOTAL(109,NovembrisPārdošana[Pārdošanas cena]) -> 0.00 € | G8: =SUBTOTAL(109,NovembrisPārdošana[Interneta maksājumi]) -> 0.00 € | H8: =SUBTOTAL(109,NovembrisPārdošana[PayPal maksājumi]) -> 0.00 € | I8: =SUBTOTAL(109,NovembrisPārdošana[Kredītkartes maksājumi]) -> 0.00 € | J8: =SUBTOTAL(109,NovembrisPārdošana[Piegādes izdevumi]) -> 0.00 € | K8: =SUBTOTAL(109,NovembrisPārdošana[Maksa par piegādi]) -> 0.00 € | L8: =SUBTOTAL(109,NovembrisPārdošana[Peļņa/zaudējumi no pārdošanas]) -> 0.00 € | M8: =SUBTOTAL(109,NovembrisPārdošana[Peļņa/zaudējumi no pārvadājumiem]) -> 0.00 € | N8: =SUBTOTAL(109,NovembrisPārdošana[Kopējā peļņa/zaudējumi]) -> 0.00 €
A9: Peļņas/zaudējumu tendence

Sheet Decembris
A1: DECEMBRIS
A2: Pārdošana tiešsaistē | C2: Izsoles ID | D2: Pozīcijas apraksts | E2: Pirkuma cena | F2: Pārdošanas cena | G2: Interneta maksājumi | H2: PayPal maksājumi | I2: Kredītkartes maksājumi | J2: Piegādes izdevumi | K2: Maksa par piegādi | L2: Peļņa/zaudējumi no pārdošanas | M2: Peļņa/zaudējumi no pārvadājumiem | N2: Kopējā peļņa/zaudējumi
A3: Gads | M3: =DecembrisPārdošana[Piegādes izdevumi]-DecembrisPārdošana[Maksa par piegādi] -> 0.00 € | N3: =DecembrisPārdošana[Peļņa/zaudējumi no pārdošanas]+DecembrisPārdošana[Peļņa/zaudējumi no pārvadājumiem] -> 0.00 €
A4: =PārdošanasGads -> 2012 | M4: =DecembrisPārdošana[Piegādes izdevumi]-DecembrisPārdošana[Maksa par piegādi] -> 0.00 € | N4: =DecembrisPārdošana[Peļņa/zaudējumi no pārdošanas]+DecembrisPārdošana[Peļņa/zaudējumi no pārvadājumiem] -> 0.00 €
M5: =DecembrisPārdošana[Piegādes izdevumi]-DecembrisPārdošana[Maksa par piegādi] -> 0.00 € | N5: =DecembrisPārdošana[Peļņa/zaudējumi no pārdošanas]+DecembrisPārdošana[Peļņa/zaudējumi no pārvadājumiem] -> 0.00 €
A6: Kopējā peļņa/zaudējumi | M6: =DecembrisPārdošana[Piegādes izdevumi]-DecembrisPārdošana[Maksa par piegādi] -> 0.00 € | N6: =DecembrisPārdošana[Peļņa/zaudējumi no pārdošanas]+DecembrisPārdošana[Peļņa/zaudējumi no pārvadājumiem] -> 0.00 €
A7: =DecembrisPārdošana[[#Totals],[Kopējā peļņa/zaudējumi]] -> 0.00 € | M7: =DecembrisPārdošana[Piegādes izdevumi]-DecembrisPārdošana[Maksa par piegādi] -> 0.00 € | N7: =DecembrisPārdošana[Peļņa/zaudējumi no pārdošanas]+DecembrisPārdošana[Peļņa/zaudējumi no pārvadājumiem] -> 0.00 €
C8: Kopā | D8: ="Pārdotie vienumi: "&SUBTOTAL(103,DecembrisPārdošana[Pozīcijas apraksts]) -> Pārdotie vienumi: 0 | E8: =SUBTOTAL(109,DecembrisPārdošana[Pirkuma cena]) -> 0.00 € | F8: =SUBTOTAL(109,DecembrisPārdošana[Pārdošanas cena]) -> 0.00 € | G8: =SUBTOTAL(109,DecembrisPārdošana[Interneta maksājumi]) -> 0.00 € | H8: =SUBTOTAL(109,DecembrisPārdošana[PayPal maksājumi]) -> 0.00 € | I8: =SUBTOTAL(109,DecembrisPārdošana[Kredītkartes maksājumi]) -> 0.00 € | J8: =SUBTOTAL(109,DecembrisPārdošana[Piegādes izdevumi]) -> 0.00 € | K8: =SUBTOTAL(109,DecembrisPārdošana[Maksa par piegādi]) -> 0.00 € | L8: =SUBTOTAL(109,DecembrisPārdošana[Peļņa/zaudējumi no pārdošanas]) -> 0.00 € | M8: =SUBTOTAL(109,DecembrisPārdošana[Peļņa/zaudējumi no pārvadājumiem]) -> 0.00 € | N8: =SUBTOTAL(109,DecembrisPārdošana[Kopējā peļņa/zaudējumi]) -> 0.00 €
A9: Peļņas/zaudējumu tendence

Sheet Kopsavilkums no gada sākuma
A1: NGS
A2: Kopsavilkums | C2: Peļņa/zaudējumi | H2: Peļņa/zaudējumi no gada sākuma
A3: Gads | H3: Mēnesis | I3: Peļņa/zaudējumi no pārdošanas | J3: Peļņa/zaudējumi no pārvadājumiem | K3: Kopējā peļņa/zaudējumi
A4: =PārdošanasGads -> 2012 | H4: Janvāris | I4: =JanvārisPārdošana[[#Totals],[Peļņa/zaudējumi no pārdošanas]] -> 79.50 € | J4: =JanvārisPārdošana[[#Totals],[Peļņa/zaudējumi no pārvadājumiem]] -> 9.50 € | K4: =IF(AND(KopsavilkumsNGS[[#This Row],[Peļņa/zaudējumi no pārdošanas]]<>"",KopsavilkumsNGS[[#This Row],[Peļņa/zaudējumi no pārvadājumiem]]<>""),KopsavilkumsNGS[[#This Row],[Peļņa/zaudējumi no pārdošanas]]+KopsavilkumsNGS[[#This Row],[Peļņa/zaudējumi no pārvadājumiem]],"") -> 89.00 €
H5: Februāris | I5: =FebruārisPārdošana[[#Totals],[Peļņa/zaudējumi no pārdošanas]] -> 212.30 € | J5: =FebruārisPārdošana[[#Totals],[Peļņa/zaudējumi no pārvadājumiem]] -> 12.30 € | K5: =IF(AND(KopsavilkumsNGS[[#This Row],[Peļņa/zaudējumi no pārdošanas]]<>"",KopsavilkumsNGS[[#This Row],[Peļņa/zaudējumi no pārvadājumiem]]<>""),KopsavilkumsNGS[[#This Row],[Peļņa/zaudējumi no pārdošanas]]+KopsavilkumsNGS[[#This Row],[Peļņa/zaudējumi no pārvadājumiem]],"") -> 224.60 €
A6: Mēneša pārdošanas tendence: | H6: Marts | I6: =MartsPārdošana[[#Totals],[Peļņa/zaudējumi no pārdošanas]] -> 0.00 € | J6: =MartsPārdošana[[#Totals],[Peļņa/zaudējumi no pārvadājumiem]] -> 0.00 € | K6: =IF(AND(KopsavilkumsNGS[[#This Row],[Peļņa/zaudējumi no pārdošanas]]<>"",KopsavilkumsNGS[[#This Row],[Peļņa/zaudējumi no pārvadājumiem]]<>""),KopsavilkumsNGS[[#This Row],[Peļņa/zaudējumi no pārdošanas]]+KopsavilkumsNGS[[#This Row],[Peļņa/zaudējumi no pārvadājumiem]],"") -> 0.00 €
H7: Aprīlis | I7: =AprīlisPārdošana[[#Totals],[Peļņa/zaudējumi no pārdošanas]] -> 0.00 € | J7: =AprīlisPārdošana[[#Totals],[Peļņa/zaudējumi no pārvadājumiem]] -> 0.00 € | K7: =IF(AND(KopsavilkumsNGS[[#This Row],[Peļņa/zaudējumi no pārdošanas]]<>"",KopsavilkumsNGS[[#This Row],[Peļņa/zaudējumi no pārvadājumiem]]<>""),KopsavilkumsNGS[[#This Row],[Peļņa/zaudējumi no pārdošanas]]+KopsavilkumsNGS[[#This Row],[Peļņa/zaudējumi no pārvadājumiem]],"") -> 0.00 €
H8: Maijs | I8: =MaijsPārdošana[[#Totals],[Peļņa/zaudējumi no pārdošanas]] -> 0.00 € | J8: =MaijsPārdošana[[#Totals],[Peļņa/zaudējumi no pārvadājumiem]] -> 0.00 € | K8: =IF(AND(KopsavilkumsNGS[[#This Row],[Peļņa/zaudējumi no pārdošanas]]<>"",KopsavilkumsNGS[[#This Row],[Peļņa/zaudējumi no pārvadājumiem]]<>""),KopsavilkumsNGS[[#This Row],[Peļņa/zaudējumi no pārdošanas]]+KopsavilkumsNGS[[#This Row],[Peļņa/zaudējumi no pārvadājumiem]],"") -> 0.00 €
H9: Jūnijs | I9: =JūnijsPārdošana[[#Totals],[Peļņa/zaudējumi no pārdošanas]] -> 0.00 € | J9: =JūnijsPārdošana[[#Totals],[Peļņa/zaudējumi no pārvadājumiem]] -> 0.00 € | K9: =IF(AND(KopsavilkumsNGS[[#This Row],[Peļņa/zaudējumi no pārdošanas]]<>"",KopsavilkumsNGS[[#This Row],[Peļņa/zaudējumi no pārvadājumiem]]<>""),KopsavilkumsNGS[[#This Row],[Peļņa/zaudējumi no pārdošanas]]+KopsavilkumsNGS[[#This Row],[Peļņa/zaudējumi no pārvadājumiem]],"") -> 0.00 €
H10: Jūlijs | I10: =JūlijsPārdošana[[#Totals],[Peļņa/zaudējumi no pārdošanas]] -> 0.00 € | J10: =JūlijsPārdošana[[#Totals],[Peļņa/zaudējumi no pārvadājumiem]] -> 0.00 € | K10: =IF(AND(KopsavilkumsNGS[[#This Row],[Peļņa/zaudējumi no pārdošanas]]<>"",KopsavilkumsNGS[[#This Row],[Peļņa/zaudējumi no pārvadājumiem]]<>""),KopsavilkumsNGS[[#This Row],[Peļņa/zaudējumi no pārdošanas]]+KopsavilkumsNGS[[#This Row],[Peļņa/zaudējumi no pārvadājumiem]],"") -> 0.00 €
H11: Augusts | I11: =AugustsPārdošana[[#Totals],[Peļņa/zaudējumi no pārdošanas]] -> 0.00 € | J11: =AugustsPārdošana[[#Totals],[Peļņa/zaudējumi no pārvadājumiem]] -> 0.00 € | K11: =IF(AND(KopsavilkumsNGS[[#This Row],[Peļņa/zaudējumi no pārdošanas]]<>"",KopsavilkumsNGS[[#This Row],[Peļņa/zaudējumi no pārvadājumiem]]<>""),KopsavilkumsNGS[[#This Row],[Peļņa/zaudējumi no pārdošanas]]+KopsavilkumsNGS[[#This Row],[Peļņa/zaudējumi no pārvadājumiem]],"") -> 0.00 €
H12: Septembris | I12: =SeptembrisPārdošana[[#Totals],[Peļņa/zaudējumi no pārdošanas]] -> 0.00 € | J12: =SeptembrisPārdošana[[#Totals],[Peļņa/zaudējumi no pārvadājumiem]] -> 0.00 € | K12: =IF(AND(KopsavilkumsNGS[[#This Row],[Peļņa/zaudējumi no pārdošanas]]<>"",KopsavilkumsNGS[[#This Row],[Peļņa/zaudējumi no pārvadājumiem]]<>""),KopsavilkumsNGS[[#This Row],[Peļņa/zaudējumi no pārdošanas]]+KopsavilkumsNGS[[#This Row],[Peļņa/zaudējumi no pārvadājumiem]],"") -> 0.00 €
H13: Oktobris | I13: =OktobrisPārdošana[[#Totals],[Peļņa/zaudējumi no pārdošanas]] -> 0.00 € | J13: =OktobrisPārdošana[[#Totals],[Peļņa/zaudējumi no pārvadājumiem]] -> 0.00 € | K13: =IF(AND(KopsavilkumsNGS[[#This Row],[Peļņa/zaudējumi no pārdošanas]]<>"",KopsavilkumsNGS[[#This Row],[Peļņa/zaudējumi no pārvadājumiem]]<>""),KopsavilkumsNGS[[#This Row],[Peļņa/zaudējumi no pārdošanas]]+KopsavilkumsNGS[[#This Row],[Peļņa/zaudējumi no pārvadājumiem]],"") -> 0.00 €
H14: Novembris | I14: =NovembrisPārdošana[[#Totals],[Peļņa/zaudējumi no pārdošanas]] -> 0.00 € | J14: =NovembrisPārdošana[[#Totals],[Peļņa/zaudējumi no pārvadājumiem]] -> 0.00 € | K14: =IF(AND(KopsavilkumsNGS[[#This Row],[Peļņa/zaudējumi no pārdošanas]]<>"",KopsavilkumsNGS[[#This Row],[Peļņa/zaudējumi no pārvadājumiem]]<>""),KopsavilkumsNGS[[#This Row],[Peļņa/zaudējumi no pārdošanas]]+KopsavilkumsNGS[[#This Row],[Peļņa/zaudējumi no pārvadājumiem]],"") -> 0.00 €
H15: Decembris | I15: =DecembrisPārdošana[[#Totals],[Peļņa/zaudējumi no pārdošanas]] -> 0.00 € | J15: =DecembrisPārdošana[[#Totals],[Peļņa/zaudējumi no pārvadājumiem]] -> 0.00 € | K15: =IF(AND(KopsavilkumsNGS[[#This Row],[Peļņa/zaudējumi no pārdošanas]]<>"",KopsavilkumsNGS[[#This Row],[Peļņa/zaudējumi no pārvadājumiem]]<>""),KopsavilkumsNGS[[#This Row],[Peļņa/zaudējumi no pārdošanas]]+KopsavilkumsNGS[[#This Row],[Peļņa/zaudējumi no pārvadājumiem]],"") -> 0.00 €
H16: Kopā | I16: =SUBTOTAL(109,KopsavilkumsNGS[Peļņa/zaudējumi no pārdošanas]) -> 291.80 € | J16: =SUBTOTAL(109,KopsavilkumsNGS[Peļņa/zaudējumi no pārvadājumiem]) -> 21.80 € | K16: =SUBTOTAL(109,KopsavilkumsNGS[Kopējā peļņa/zaudējumi]) -> 313.60 €
